[Event "*** SCC Grand Prix: Titled Tuesday Blitz"]
[Site "Chess.com"]
[Date "2020.08.11"]
[Round "2"]
[White "chessablanca"]
[Black "Shivagami"]
[Result "0-1"]
[WhiteElo "2415"]
[BlackElo "2224"]
[TimeControl "180+1"]
[EndTime "10:17:13 PDT"]
[Termination "Shivagami won by resignation"]

1. Nf3 {[%clk 0:03:00.9]} 1... d5 {[%clk 0:02:59]} 2. c4 {[%clk 0:03:00.4]} 2...
d4 {[%clk 0:02:59.1]} 3. e3 {[%clk 0:03:00.5]} 3... Nc6 {[%clk 0:02:58.6]} 4.
exd4 {[%clk 0:03:00.4]} 4... Nxd4 {[%clk 0:02:58.2]} 5. Nxd4 {[%clk 0:03:00.2]}
5... Qxd4 {[%clk 0:02:58.4]} 6. Nc3 {[%clk 0:03:00.6]} 6... Nh6 {[%clk
0:02:57.7]} 7. d3 {[%clk 0:03:00.9]} 7... e5 {[%clk 0:02:56.5]} 8. Be2 {[%clk
0:02:59.7]} 8... Nf5 {[%clk 0:02:56.4]} 9. O-O {[%clk 0:02:57]} 9... Bc5 {[%clk
0:02:55.6]} 10. Ne4 {[%clk 0:02:55.4]} 10... Be7 {[%clk 0:02:51.7]} 11. Rb1
{[%clk 0:02:51.4]} 11... a5 {[%clk 0:02:50]} 12. b3 {[%clk 0:02:49.9]} 12... O-O
{[%clk 0:02:48.7]} 13. Bb2 {[%clk 0:02:49.7]} 13... Qb6 {[%clk 0:02:46]} 14.
Bxe5 {[%clk 0:02:48.4]} 14... Qg6 {[%clk 0:02:40.1]} 15. Ng3 {[%clk 0:02:22.7]}
15... Nxg3 {[%clk 0:02:36.9]} 16. Bxg3 {[%clk 0:02:23.6]} 16... f5 {[%clk
0:02:33.9]} 17. Bxc7 {[%clk 0:02:18.9]} 17... f4 {[%clk 0:02:34.1]} 18. Bf3
{[%clk 0:02:14.6]} 18... Bf5 {[%clk 0:02:27.1]} 19. Rb2 {[%clk 0:01:56.9]} 19...
Bxd3 {[%clk 0:02:24.2]} 20. Re1 {[%clk 0:01:55.7]} 20... Bb4 {[%clk 0:02:20.4]}
21. Bd5+ {[%clk 0:01:47.6]} 21... Kh8 {[%clk 0:02:19.9]} 22. Re6 {[%clk
0:01:46.1]} 22... Qf5 {[%clk 0:02:09.8]} 23. a3 {[%clk 0:01:16.8]} 23... Bc3
{[%clk 0:02:08.3]} 24. Ra2 {[%clk 0:01:14.6]} 24... f3 {[%clk 0:01:55.7]} 25.
Qxf3 {[%clk 0:01:05.8]} 25... Qxe6 {[%clk 0:01:23.4]} 26. Qxd3 {[%clk
0:00:22.7]} 26... Qe1+ {[%clk 0:01:17.4]} 27. Qf1 {[%clk 0:00:23.2]} 27... Rae8
{[%clk 0:01:16.6]} 28. h3 {[%clk 0:00:20.6]} 28... Qxf1+ {[%clk 0:01:16.5]} 0-1

[Event "*** SCC Grand Prix: Titled Tuesday Blitz"]
[Site "Chess.com"]
[Date "2020.08.11"]
[Round "2"]
[White "Andrakhanova"]
[Black "mapleaff"]
[Result "1/2-1/2"]
[WhiteElo "1689"]
[BlackElo "2327"]
[TimeControl "180+1"]
[EndTime "10:17:13 PDT"]
[Termination "Game drawn by repetition"]

1. c4 {[%clk 0:03:00.9]} 1... Nf6 {[%clk 0:02:59.5]} 2. Nc3 {[%clk 0:03:00.6]}
2... g6 {[%clk 0:02:59.8]} 3. g3 {[%clk 0:03:00.3]} 3... d6 {[%clk 0:02:59.6]}
4. Bg2 {[%clk 0:03:00.3]} 4... Bg7 {[%clk 0:02:59.6]} 5. Nf3 {[%clk 0:03:00.5]}
5... O-O {[%clk 0:03:00]} 6. O-O {[%clk 0:03:00.7]} 6... Nc6 {[%clk 0:03:00.5]}
7. d4 {[%clk 0:03:00.9]} 7... e5 {[%clk 0:03:00.4]} 8. d5 {[%clk 0:02:59.4]}
8... Ne7 {[%clk 0:02:59.6]} 9. e4 {[%clk 0:02:57.6]} 9... Nd7 {[%clk 0:02:59.3]}
10. Qc2 {[%clk 0:02:55.5]} 10... h6 {[%clk 0:02:57.9]} 11. Be3 {[%clk
0:02:52.1]} 11... f5 {[%clk 0:02:55.5]} 12. exf5 {[%clk 0:02:51.7]} 12... gxf5
{[%clk 0:02:52.7]} 13. Rae1 {[%clk 0:02:50.9]} 13... Nf6 {[%clk 0:02:50.4]} 14.
Qc1 {[%clk 0:02:49.7]} 14... Ng4 {[%clk 0:02:50.2]} 15. Bd2 {[%clk 0:02:49.8]}
15... Ng6 {[%clk 0:02:45.6]} 16. h3 {[%clk 0:02:48]} 16... e4 {[%clk 0:02:45.6]}
17. hxg4 {[%clk 0:02:40]} 17... exf3 {[%clk 0:02:45.4]} 18. Bxf3 {[%clk
0:02:40.9]} 18... fxg4 {[%clk 0:02:44.9]} 19. Be4 {[%clk 0:02:39.3]} 19... Ne5
{[%clk 0:02:44.1]} 20. Bxh6 {[%clk 0:02:36.2]} 20... Bf5 {[%clk 0:02:42.4]} 21.
Bxg7 {[%clk 0:02:34.3]} 21... Kxg7 {[%clk 0:02:42.4]} 22. Bxf5 {[%clk 0:02:18]}
22... Nf3+ {[%clk 0:02:36.5]} 23. Kg2 {[%clk 0:02:18.2]} 23... Nxe1+ {[%clk
0:02:35.5]} 24. Rxe1 {[%clk 0:02:18.2]} 24... Rxf5 {[%clk 0:02:35.9]} 25. Ne2
{[%clk 0:02:11.6]} 25... Qf6 {[%clk 0:02:31.4]} 26. Nf4 {[%clk 0:02:09.9]} 26...
Rh8 {[%clk 0:02:21.5]} 27. Re6 {[%clk 0:02:01.7]} 27... Qf7 {[%clk 0:02:07.6]}
28. Qe1 {[%clk 0:01:55.5]} 28... Re5 {[%clk 0:00:50.4]} 29. Rxe5 {[%clk
0:01:49.3]} 29... dxe5 {[%clk 0:00:51.3]} 30. Qxe5+ {[%clk 0:01:49.6]} 30... Kg8
{[%clk 0:00:50.7]} 31. Qg5+ {[%clk 0:01:43]} 31... Qg7 {[%clk 0:00:39.7]} 32.
Qd8+ {[%clk 0:01:36.7]} 32... Kh7 {[%clk 0:00:36.6]} 33. Qh4+ {[%clk 0:01:35.6]}
33... Kg8 {[%clk 0:00:35.8]} 34. Qd8+ {[%clk 0:01:33.6]} 34... Kh7 {[%clk
0:00:27.7]} 35. Qh4+ {[%clk 0:01:30.5]} 35... Kg8 {[%clk 0:00:24.8]} 36. Qd8+
{[%clk 0:01:30.1]} 1/2-1/2

[Event "*** SCC Grand Prix: Titled Tuesday Blitz"]
[Site "Chess.com"]
[Date "2020.08.11"]
[Round "2"]
[White "DACF2905"]
[Black "Nikithebest"]
[Result "1-0"]
[WhiteElo "2230"]
[BlackElo "2417"]
[TimeControl "180+1"]
[EndTime "10:17:16 PDT"]
[Termination "DACF2905 won by resignation"]

1. c4 {[%clk 0:03:00.9]} 1... c5 {[%clk 0:02:59.4]} 2. Nc3 {[%clk 0:02:58.8]}
2... Nc6 {[%clk 0:02:53.1]} 3. g3 {[%clk 0:02:58.6]} 3... g6 {[%clk 0:02:52.9]}
4. Bg2 {[%clk 0:02:58.1]} 4... Bg7 {[%clk 0:02:53.2]} 5. e3 {[%clk 0:02:57.4]}
5... d6 {[%clk 0:02:53.6]} 6. Nge2 {[%clk 0:02:56.4]} 6... Bf5 {[%clk
0:02:53.6]} 7. O-O {[%clk 0:02:48.7]} 7... Bd3 {[%clk 0:02:36.2]} 8. Re1 {[%clk
0:02:47.7]} 8... Bxc4 {[%clk 0:02:32.2]} 9. Bxc6+ {[%clk 0:02:46.7]} 9... bxc6
{[%clk 0:02:30.1]} 10. Qa4 {[%clk 0:02:46.6]} 10... Be6 {[%clk 0:02:27.2]} 11.
Qxc6+ {[%clk 0:02:45.4]} 11... Bd7 {[%clk 0:02:27.6]} 12. Qa6 {[%clk 0:02:42.7]}
12... h5 {[%clk 0:02:26.8]} 13. d4 {[%clk 0:02:39.6]} 13... h4 {[%clk 0:02:25]}
14. dxc5 {[%clk 0:02:38.5]} 14... hxg3 {[%clk 0:02:25.4]} 15. hxg3 {[%clk
0:02:37.6]} 15... dxc5 {[%clk 0:02:22.1]} 16. Rd1 {[%clk 0:02:33.6]} 16... Qc7
{[%clk 0:02:09.8]} 17. Nd5 {[%clk 0:02:27.1]} 17... Qe5 {[%clk 0:01:32.7]} 18.
Nef4 {[%clk 0:02:02.3]} 18... Qe4 {[%clk 0:01:22.7]} 19. Ng2 {[%clk 0:00:12.2]}
19... Bc6 {[%clk 0:01:04.3]} 20. Qxc6+ {[%clk 0:00:10.6]} 1-0

[Event "*** SCC Grand Prix: Titled Tuesday Blitz"]
[Site "Chess.com"]
[Date "2020.08.11"]
[Round "2"]
[White "VladimirBelous"]
[Black "Sergey85Rodchenkov"]
[Result "1-0"]
[WhiteElo "2730"]
[BlackElo "2486"]
[TimeControl "180+1"]
[EndTime "10:17:19 PDT"]
[Termination "VladimirBelous won by resignation"]

1. c4 {[%clk 0:03:00.9]} 1... Nf6 {[%clk 0:02:59.4]} 2. Nc3 {[%clk 0:02:59.2]}
2... d5 {[%clk 0:02:59.2]} 3. cxd5 {[%clk 0:02:57.5]} 3... Nxd5 {[%clk
0:02:59.7]} 4. g3 {[%clk 0:02:50.1]} 4... Nc6 {[%clk 0:02:58.5]} 5. Bg2 {[%clk
0:02:50.4]} 5... Nb6 {[%clk 0:02:58.5]} 6. Nf3 {[%clk 0:02:50.7]} 6... g6 {[%clk
0:02:58.1]} 7. b3 {[%clk 0:02:48.6]} 7... Bg7 {[%clk 0:02:58]} 8. Bb2 {[%clk
0:02:49.2]} 8... O-O {[%clk 0:02:57.1]} 9. O-O {[%clk 0:02:49.8]} 9... a5 {[%clk
0:02:56.5]} 10. e3 {[%clk 0:02:39.5]} 10... e5 {[%clk 0:02:55.9]} 11. Rc1 {[%clk
0:02:10.2]} 11... Re8 {[%clk 0:02:53.7]} 12. a3 {[%clk 0:02:01.7]} 12... Bf5
{[%clk 0:02:45.1]} 13. d4 {[%clk 0:02:00.4]} 13... exd4 {[%clk 0:02:40.6]} 14.
exd4 {[%clk 0:02:01.3]} 14... Nxd4 {[%clk 0:02:06.4]} 15. Nxd4 {[%clk
0:02:00.5]} 15... Qxd4 {[%clk 0:02:06.9]} 16. Qxd4 {[%clk 0:01:55.3]} 16... Bxd4
{[%clk 0:02:06.6]} 17. Bxb7 {[%clk 0:01:55.4]} 17... Rab8 {[%clk 0:02:01.9]} 18.
Bc6 {[%clk 0:01:54.9]} 18... Red8 {[%clk 0:01:59.1]} 19. Rfd1 {[%clk 0:01:49.8]}
19... h5 {[%clk 0:01:28.3]} 20. Kg2 {[%clk 0:01:47.1]} 20... Rd6 {[%clk
0:01:23.3]} 21. Bf3 {[%clk 0:01:22.6]} 21... Nc4 {[%clk 0:01:18.7]} 22. Ba1
{[%clk 0:01:05.5]} 22... Rxb3 {[%clk 0:01:13.6]} 23. Nb5 {[%clk 0:01:05.5]}
23... Bxa1 {[%clk 0:00:44.2]} 24. Nxd6 {[%clk 0:01:00.3]} 24... Nxd6 {[%clk
0:00:43]} 25. Rxa1 {[%clk 0:00:59.6]} 25... Rxf3 {[%clk 0:00:43]} 26. Kxf3
{[%clk 0:00:59]} 26... Bg4+ {[%clk 0:00:42.9]} 27. Kg2 {[%clk 0:00:58.1]} 27...
Bxd1 {[%clk 0:00:41.7]} 28. Rxd1 {[%clk 0:00:59]} 28... Nc4 {[%clk 0:00:41.4]}
29. Rd3 {[%clk 0:00:52.8]} 29... Nb2 {[%clk 0:00:40.2]} 30. Rc3 {[%clk
0:00:51.3]} 1-0

[Event "*** SCC Grand Prix: Titled Tuesday Blitz"]
[Site "Chess.com"]
[Date "2020.08.11"]
[Round "2"]
[White "vvg2"]
[Black "NateSolon"]
[Result "1-0"]
[WhiteElo "2236"]
[BlackElo "2535"]
[TimeControl "180+1"]
[EndTime "10:17:19 PDT"]
[Termination "vvg2 won by resignation"]

1. d4 {[%clk 0:03:00.9]} 1... Nf6 {[%clk 0:02:56]} 2. c4 {[%clk 0:03:01.1]} 2...
e6 {[%clk 0:02:55.8]} 3. Nf3 {[%clk 0:03:01.2]} 3... d5 {[%clk 0:02:55.7]} 4.
Nc3 {[%clk 0:03:01]} 4... dxc4 {[%clk 0:02:55.4]} 5. e3 {[%clk 0:02:57.8]} 5...
a6 {[%clk 0:02:54.8]} 6. a4 {[%clk 0:02:57.6]} 6... c5 {[%clk 0:02:52.8]} 7.
Bxc4 {[%clk 0:02:57.8]} 7... Nc6 {[%clk 0:02:50.1]} 8. O-O {[%clk 0:02:57.9]}
8... Be7 {[%clk 0:02:47.3]} 9. Qe2 {[%clk 0:02:57.6]} 9... cxd4 {[%clk
0:02:44.8]} 10. Rd1 {[%clk 0:02:56]} 10... O-O {[%clk 0:02:38.2]} 11. exd4
{[%clk 0:02:56]} 11... Nb4 {[%clk 0:02:27.3]} 12. Ne5 {[%clk 0:02:54.1]} 12...
b6 {[%clk 0:02:17.7]} 13. Qf3 {[%clk 0:02:47.9]} 13... Ra7 {[%clk 0:02:13]} 14.
Bg5 {[%clk 0:02:44.9]} 14... Bb7 {[%clk 0:02:11.7]} 15. Qg3 {[%clk 0:02:34.8]}
15... g6 {[%clk 0:01:59.8]} 16. Qh3 {[%clk 0:02:00.1]} 16... Nfd5 {[%clk
0:01:47.2]} 17. Bh6 {[%clk 0:01:58.2]} 17... Re8 {[%clk 0:01:46.5]} 18. Ne4
{[%clk 0:01:47.4]} 18... Ba8 {[%clk 0:01:41]} 19. Ra3 {[%clk 0:01:30.3]} 19...
Nc6 {[%clk 0:00:45]} 20. Nxf7 {[%clk 0:01:20.3]} 20... Kxf7 {[%clk 0:00:41.9]}
21. Rf3+ {[%clk 0:01:19.7]} 21... Kg8 {[%clk 0:00:22]} 22. Qxe6+ {[%clk
0:01:18.6]} 22... Kh8 {[%clk 0:00:22.3]} 23. Bxd5 {[%clk 0:01:11.8]} 23... Bf8
{[%clk 0:00:17.1]} 24. Rxf8+ {[%clk 0:01:09.8]} 24... Rxf8 {[%clk 0:00:18]} 25.
Bxf8 {[%clk 0:01:09.9]} 1-0

[Event "*** SCC Grand Prix: Titled Tuesday Blitz"]
[Site "Chess.com"]
[Date "2020.08.11"]
[Round "2"]
[White "bratkoo"]
[Black "Shield12"]
[Result "0-1"]
[WhiteElo "2562"]
[BlackElo "2852"]
[TimeControl "180+1"]
[EndTime "10:17:20 PDT"]
[Termination "Shield12 won by resignation"]

1. e4 {[%clk 0:03:00.9]} 1... c5 {[%clk 0:03:00]} 2. Nf3 {[%clk 0:03:00.7]} 2...
Nc6 {[%clk 0:03:00.7]} 3. d4 {[%clk 0:03:00.7]} 3... cxd4 {[%clk 0:03:01.6]} 4.
Nxd4 {[%clk 0:03:01]} 4... Nf6 {[%clk 0:03:02.5]} 5. Nc3 {[%clk 0:03:00.6]} 5...
d6 {[%clk 0:03:03]} 6. h3 {[%clk 0:02:59.4]} 6... e5 {[%clk 0:03:02.1]} 7. Nde2
{[%clk 0:02:59.4]} 7... Be6 {[%clk 0:03:00.3]} 8. g4 {[%clk 0:02:58.5]} 8... d5
{[%clk 0:03:00.5]} 9. exd5 {[%clk 0:02:51.9]} 9... Nxd5 {[%clk 0:03:01.4]} 10.
Bg2 {[%clk 0:02:52.2]} 10... Nxc3 {[%clk 0:03:01.8]} 11. Qxd8+ {[%clk
0:02:51.3]} 11... Rxd8 {[%clk 0:03:02.7]} 12. Nxc3 {[%clk 0:02:51.4]} 12... h5
{[%clk 0:03:00.6]} 13. Be3 {[%clk 0:02:24.5]} 13... hxg4 {[%clk 0:02:58.1]} 14.
hxg4 {[%clk 0:02:21]} 14... Rxh1+ {[%clk 0:02:59]} 15. Bxh1 {[%clk 0:02:21.6]}
15... Bxg4 {[%clk 0:02:55.6]} 16. Bxc6+ {[%clk 0:02:21]} 16... bxc6 {[%clk
0:02:56.5]} 17. Bxa7 {[%clk 0:02:21.4]} 17... f5 {[%clk 0:02:47.5]} 18. Be3
{[%clk 0:02:20.2]} 18... f4 {[%clk 0:02:45.4]} 19. Bd2 {[%clk 0:02:20.3]} 19...
Bf3 {[%clk 0:02:41.1]} 20. a4 {[%clk 0:02:19.6]} 20... Bc5 {[%clk 0:02:39.8]}
21. a5 {[%clk 0:02:17.5]} 21... Kf7 {[%clk 0:02:37.3]} 22. a6 {[%clk 0:02:16.6]}
22... Rh8 {[%clk 0:02:35.2]} 23. Bc1 {[%clk 0:02:11.7]} 23... Rh1+ {[%clk
0:02:24.9]} 24. Kd2 {[%clk 0:02:11.6]} 24... Bxf2 {[%clk 0:02:25.1]} 25. a7
{[%clk 0:01:59]} 25... Be3+ {[%clk 0:02:21.8]} 26. Kd3 {[%clk 0:01:59.2]} 26...
Bxa7 {[%clk 0:02:22.1]} 27. Rxa7+ {[%clk 0:01:58.3]} 27... Kf6 {[%clk
0:02:19.7]} 28. Bd2 {[%clk 0:01:55.7]} 28... g5 {[%clk 0:02:19.1]} 29. Ne4+
{[%clk 0:01:48.6]} 29... Bxe4+ {[%clk 0:02:12.6]} 30. Kxe4 {[%clk 0:01:47.7]}
30... Rh2 {[%clk 0:02:09.8]} 31. Bc3 {[%clk 0:01:45.7]} 31... Re2+ {[%clk
0:02:09.4]} 32. Kd3 {[%clk 0:01:45.9]} 32... f3 {[%clk 0:01:50.3]} 33. Ra4
{[%clk 0:01:36.1]} 33... Kf5 {[%clk 0:01:46]} 34. Ra7 {[%clk 0:01:29.8]} 34...
e4+ {[%clk 0:01:39.4]} 35. Kd4 {[%clk 0:01:30.1]} 35... f2 {[%clk 0:01:28.1]}
36. Rf7+ {[%clk 0:01:29.7]} 36... Kg6 {[%clk 0:01:26.5]} 37. Rf8 {[%clk
0:01:29.7]} 37... e3 {[%clk 0:01:25]} 38. Rf6+ {[%clk 0:01:07.4]} 38... Kh5
{[%clk 0:01:13.3]} 39. Ke4 {[%clk 0:01:01.3]} 39... Re1 {[%clk 0:01:11]} 0-1

[Event "*** SCC Grand Prix: Titled Tuesday Blitz"]
[Site "Chess.com"]
[Date "2020.08.11"]
[Round "2"]
[White "David_Paravyan"]
[Black "renehp"]
[Result "1-0"]
[WhiteElo "2879"]
[BlackElo "2440"]
[TimeControl "180+1"]
[EndTime "10:17:20 PDT"]
[Termination "David_Paravyan won by resignation"]

1. d4 {[%clk 0:03:00.9]} 1... d5 {[%clk 0:02:59.9]} 2. c4 {[%clk 0:03:00]} 2...
c6 {[%clk 0:02:59.5]} 3. Nf3 {[%clk 0:03:00.1]} 3... Nf6 {[%clk 0:02:59.2]} 4.
g3 {[%clk 0:02:58.1]} 4... Bg4 {[%clk 0:02:56.2]} 5. Ne5 {[%clk 0:02:52.1]} 5...
Be6 {[%clk 0:02:55.5]} 6. cxd5 {[%clk 0:02:43]} 6... Bxd5 {[%clk 0:02:55.4]} 7.
f3 {[%clk 0:02:43.4]} 7... Nbd7 {[%clk 0:02:48.1]} 8. e4 {[%clk 0:02:42.2]} 8...
Be6 {[%clk 0:02:45.8]} 9. Nd3 {[%clk 0:02:29.1]} 9... g6 {[%clk 0:02:42.3]} 10.
Nf4 {[%clk 0:02:27.2]} 10... Qa5+ {[%clk 0:01:59.1]} 11. Nc3 {[%clk 0:02:24.7]}
11... O-O-O {[%clk 0:01:58.7]} 12. Nxe6 {[%clk 0:02:20.8]} 12... fxe6 {[%clk
0:01:59.6]} 13. Bh3 {[%clk 0:02:21.5]} 13... e5 {[%clk 0:01:58]} 14. dxe5 {[%clk
0:02:20.6]} 14... Qxe5 {[%clk 0:01:57.7]} 15. Bf4 {[%clk 0:02:21.3]} 15... Qc5
{[%clk 0:01:55]} 16. Qe2 {[%clk 0:02:13.3]} 16... e5 {[%clk 0:01:54.6]} 17. Bg5
{[%clk 0:02:06.4]} 17... Be7 {[%clk 0:01:51.8]} 18. O-O-O {[%clk 0:02:03.6]}
18... Kb8 {[%clk 0:01:49.2]} 19. Kb1 {[%clk 0:01:54.6]} 19... Nb6 {[%clk
0:01:43.9]} 20. Be6 {[%clk 0:01:51.6]} 20... h6 {[%clk 0:01:36.1]} 21. Be3
{[%clk 0:01:49]} 21... Qa5 {[%clk 0:01:36]} 22. f4 {[%clk 0:01:39.2]} 22... Bb4
{[%clk 0:01:34.7]} 23. fxe5 {[%clk 0:01:17.3]} 23... Bxc3 {[%clk 0:01:30]} 24.
exf6 {[%clk 0:01:13.8]} 24... Bxf6 {[%clk 0:01:30.9]} 25. Bf4+ {[%clk
0:01:06.9]} 25... Be5 {[%clk 0:01:25.4]} 26. Rxd8+ {[%clk 0:00:58.2]} 26... Rxd8
{[%clk 0:01:24.9]} 27. Rd1 {[%clk 0:00:58.7]} 27... Rf8 {[%clk 0:00:55.5]} 28.
Qd2 {[%clk 0:00:55.6]} 28... Qxd2 {[%clk 0:00:54.7]} 29. Bxe5+ {[%clk
0:00:55.2]} 1-0

[Event "*** SCC Grand Prix: Titled Tuesday Blitz"]
[Site "Chess.com"]
[Date "2020.08.11"]
[Round "2"]
[White "chessdjw"]
[Black "Lysiak_Poltorak"]
[Result "1-0"]
[WhiteElo "2614"]
[BlackElo "2341"]
[TimeControl "180+1"]
[EndTime "10:17:22 PDT"]
[Termination "chessdjw won by resignation"]

1. c4 {[%clk 0:03:00.9]} 1... Nf6 {[%clk 0:02:59.9]} 2. Nc3 {[%clk 0:02:59.6]}
2... d5 {[%clk 0:03:00.2]} 3. cxd5 {[%clk 0:02:59.3]} 3... Nxd5 {[%clk
0:03:01.1]} 4. Nf3 {[%clk 0:02:59.4]} 4... c5 {[%clk 0:03:00.4]} 5. d4 {[%clk
0:02:52.6]} 5... Nxc3 {[%clk 0:02:58]} 6. bxc3 {[%clk 0:02:53.5]} 6... g6 {[%clk
0:02:58.5]} 7. e4 {[%clk 0:02:50.3]} 7... Bg7 {[%clk 0:02:58.5]} 8. Be3 {[%clk
0:02:49.8]} 8... O-O {[%clk 0:02:58.6]} 9. Be2 {[%clk 0:02:48.1]} 9... cxd4
{[%clk 0:02:55.1]} 10. cxd4 {[%clk 0:02:47.7]} 10... Qa5+ {[%clk 0:02:55.7]} 11.
Bd2 {[%clk 0:02:43]} 11... Qa3 {[%clk 0:02:54.2]} 12. O-O {[%clk 0:02:37]} 12...
Bg4 {[%clk 0:02:53.9]} 13. Rb1 {[%clk 0:02:33.3]} 13... Qxa2 {[%clk 0:02:42.6]}
14. Rxb7 {[%clk 0:02:17.3]} 14... Bxf3 {[%clk 0:02:28.1]} 15. Bxf3 {[%clk
0:02:16.5]} 15... Bxd4 {[%clk 0:02:28.4]} 16. e5 {[%clk 0:02:08.6]} 16... Na6
{[%clk 0:02:26.4]} 17. Bh6 {[%clk 0:01:51]} 17... Rfd8 {[%clk 0:02:20.8]} 18.
Qc1 {[%clk 0:01:46.4]} 18... Rac8 {[%clk 0:02:17.5]} 19. Qf4 {[%clk 0:01:38.5]}
19... Rc2 {[%clk 0:02:00.2]} 20. Rxe7 {[%clk 0:00:57.8]} 20... Rxf2 {[%clk
0:01:20.3]} 21. Qxd4 {[%clk 0:00:57.1]} 21... Rxf1+ {[%clk 0:01:19.2]} 22. Kxf1
{[%clk 0:00:57.2]} 22... Qb1+ {[%clk 0:01:17.4]} 23. Kf2 {[%clk 0:00:51.5]}
23... Qc2+ {[%clk 0:01:15.6]} 24. Kg3 {[%clk 0:00:50.2]} 24... Rc8 {[%clk
0:00:54.4]} 25. e6 {[%clk 0:00:43.8]} 25... f6 {[%clk 0:00:52.7]} 26. Qxf6
{[%clk 0:00:34.6]} 26... Qc7+ {[%clk 0:00:52.6]} 27. Rxc7 {[%clk 0:00:33.7]} 1-0

[Event "*** SCC Grand Prix: Titled Tuesday Blitz"]
[Site "Chess.com"]
[Date "2020.08.11"]
[Round "2"]
[White "SRDR8290"]
[Black "Adham_Fawzy"]
[Result "0-1"]
[WhiteElo "2383"]
[BlackElo "2728"]
[TimeControl "180+1"]
[EndTime "10:17:23 PDT"]
[Termination "Adham_Fawzy won by resignation"]

1. d4 {[%clk 0:03:00.9]} 1... c5 {[%clk 0:02:59.2]} 2. e3 {[%clk 0:03:00.1]}
2... cxd4 {[%clk 0:02:58.3]} 3. exd4 {[%clk 0:03:00.3]} 3... d5 {[%clk
0:02:59.2]} 4. Nf3 {[%clk 0:03:00.7]} 4... Nc6 {[%clk 0:03:00.1]} 5. Be2 {[%clk
0:02:57.4]} 5... Nf6 {[%clk 0:02:57.7]} 6. O-O {[%clk 0:02:57]} 6... Bf5 {[%clk
0:02:58.2]} 7. c3 {[%clk 0:02:56]} 7... e6 {[%clk 0:02:57.9]} 8. Bf4 {[%clk
0:02:55.6]} 8... h6 {[%clk 0:02:57.6]} 9. Nbd2 {[%clk 0:02:54.3]} 9... Bd6
{[%clk 0:02:57.6]} 10. Bxd6 {[%clk 0:02:51.8]} 10... Qxd6 {[%clk 0:02:58.5]} 11.
Re1 {[%clk 0:02:48.6]} 11... O-O {[%clk 0:02:58]} 12. Bf1 {[%clk 0:02:41.3]}
12... Rfe8 {[%clk 0:02:54.6]} 13. Ne5 {[%clk 0:02:40.5]} 13... a6 {[%clk
0:02:49.7]} 14. a4 {[%clk 0:02:39.4]} 14... Rac8 {[%clk 0:02:48.6]} 15. Qb3
{[%clk 0:02:29.9]} 15... Na5 {[%clk 0:02:45.6]} 16. Qd1 {[%clk 0:02:20.4]} 16...
Qb6 {[%clk 0:02:44.8]} 17. b4 {[%clk 0:02:02.1]} 17... Nc6 {[%clk 0:02:44.7]}
18. a5 {[%clk 0:01:58.4]} 18... Qc7 {[%clk 0:02:41.2]} 19. Nxc6 {[%clk
0:01:48.8]} 19... Qxc6 {[%clk 0:02:42.1]} 20. Re3 {[%clk 0:01:48.9]} 20... Qd6
{[%clk 0:02:33.7]} 21. Nb3 {[%clk 0:01:46.7]} 21... Ng4 {[%clk 0:02:26.5]} 22.
Rg3 {[%clk 0:01:46.8]} 22... Rxc3 {[%clk 0:02:25.9]} 23. Nc5 {[%clk 0:01:30.4]}
23... Rxg3 {[%clk 0:02:20.1]} 24. hxg3 {[%clk 0:01:31.3]} 24... Re7 {[%clk
0:02:19.8]} 25. Bd3 {[%clk 0:01:25.5]} 25... Nf6 {[%clk 0:02:15.8]} 26. Bxf5
{[%clk 0:01:24.3]} 26... exf5 {[%clk 0:02:16.7]} 27. Qf3 {[%clk 0:01:22.2]}
27... g6 {[%clk 0:02:15.8]} 28. Rb1 {[%clk 0:01:17]} 28... Qc6 {[%clk
0:02:12.9]} 29. Qf4 {[%clk 0:01:12.7]} 29... Kg7 {[%clk 0:02:11.3]} 30. f3
{[%clk 0:01:07.8]} 30... Nh5 {[%clk 0:02:00.9]} 31. Qb8 {[%clk 0:01:03.7]} 31...
Qf6 {[%clk 0:01:57.2]} 32. Rd1 {[%clk 0:00:59.3]} 32... f4 {[%clk 0:01:57]} 33.
gxf4 {[%clk 0:00:40.6]} 33... Nxf4 {[%clk 0:01:42.8]} 34. Nxb7 {[%clk
0:00:38.2]} 34... Qg5 {[%clk 0:01:29.8]} 35. g4 {[%clk 0:00:38.4]} 35... h5
{[%clk 0:01:27.2]} 36. Nd6 {[%clk 0:00:38.7]} 36... hxg4 {[%clk 0:01:25]} 37.
Ne8+ {[%clk 0:00:38.5]} 37... Rxe8 {[%clk 0:01:22.7]} 38. Qxe8 {[%clk 0:00:37]}
38... gxf3+ {[%clk 0:01:22.2]} 39. Kf2 {[%clk 0:00:37.7]} 39... Qg2+ {[%clk
0:01:21.5]} 40. Ke1 {[%clk 0:00:36.4]} 40... f2+ {[%clk 0:01:21]} 0-1

[Event "*** SCC Grand Prix: Titled Tuesday Blitz"]
[Site "Chess.com"]
[Date "2020.08.11"]
[Round "2"]
[White "Terao90"]
[Black "Carnivoras"]
[Result "0-1"]
[WhiteElo "2314"]
[BlackElo "2653"]
[TimeControl "180+1"]
[EndTime "10:17:28 PDT"]
[Termination "Carnivoras won by resignation"]

1. e4 {[%clk 0:03:00.9]} 1... e5 {[%clk 0:02:59.2]} 2. Nf3 {[%clk 0:02:57.1]}
2... Nc6 {[%clk 0:02:59.3]} 3. d4 {[%clk 0:02:56.8]} 3... exd4 {[%clk
0:02:59.1]} 4. Nxd4 {[%clk 0:02:57]} 4... Bc5 {[%clk 0:02:56.4]} 5. Nb3 {[%clk
0:02:49.9]} 5... Bb6 {[%clk 0:02:56.1]} 6. Nc3 {[%clk 0:02:50]} 6... d6 {[%clk
0:02:54.4]} 7. Qe2 {[%clk 0:02:27.9]} 7... Nf6 {[%clk 0:02:53.2]} 8. Bg5 {[%clk
0:02:27.4]} 8... O-O {[%clk 0:02:52.5]} 9. O-O-O {[%clk 0:02:26.8]} 9... a5
{[%clk 0:02:49.2]} 10. Bxf6 {[%clk 0:02:25.3]} 10... Qxf6 {[%clk 0:02:47.7]} 11.
Nd5 {[%clk 0:02:25.4]} 11... Qh6+ {[%clk 0:02:48.1]} 12. Kb1 {[%clk 0:02:24.4]}
12... a4 {[%clk 0:02:48.1]} 13. Nxb6 {[%clk 0:02:22.7]} 13... cxb6 {[%clk
0:02:48.5]} 14. Nd4 {[%clk 0:02:22.5]} 14... a3 {[%clk 0:02:36.1]} 15. b3 {[%clk
0:02:14.2]} 15... Qf6 {[%clk 0:02:32.2]} 16. c3 {[%clk 0:02:09.7]} 16... Re8
{[%clk 0:02:24.5]} 17. Nb5 {[%clk 0:02:01.2]} 17... d5 {[%clk 0:01:50.6]} 18.
Nc7 {[%clk 0:01:11.9]} 18... Rxe4 {[%clk 0:01:48.4]} 19. Nxd5 {[%clk 0:01:11.2]}
19... Qe5 {[%clk 0:01:38.3]} 20. Qc2 {[%clk 0:01:06.3]} 20... Bf5 {[%clk
0:01:37.7]} 21. Bd3 {[%clk 0:00:43]} 21... Qxd5 {[%clk 0:01:33.1]} 22. Bxe4
{[%clk 0:00:32.7]} 22... Qxe4 {[%clk 0:01:34]} 23. Qxe4 {[%clk 0:00:31]} 23...
Bxe4+ {[%clk 0:01:34.9]} 24. Kc1 {[%clk 0:00:30.9]} 24... Bxg2 {[%clk
0:01:35.8]} 25. Rhg1 {[%clk 0:00:30.3]} 25... Bh3 {[%clk 0:01:36]} 26. Rd6
{[%clk 0:00:24.1]} 26... g6 {[%clk 0:01:33.8]} 27. Kd2 {[%clk 0:00:22.8]} 27...
Be6 {[%clk 0:01:33.4]} 28. c4 {[%clk 0:00:20.3]} 28... Ra5 {[%clk 0:01:30.8]}
29. Kc3 {[%clk 0:00:17.7]} 29... Rf5 {[%clk 0:01:30.2]} 30. Rd2 {[%clk
0:00:16.6]} 30... Rf3+ {[%clk 0:01:29.9]} 31. Kc2 {[%clk 0:00:13.9]} 31... Nb4+
{[%clk 0:01:28.9]} 32. Kd1 {[%clk 0:00:14.1]} 32... Bf5 {[%clk 0:01:27.8]} 33.
Kc1 {[%clk 0:00:13.2]} 33... Nd3+ {[%clk 0:01:25.6]} 0-1